Cogmind - Beta 14 @@@ ROGUE MODE // 2024.11.17 @ 21:15:02 Player: TheRealTurtle Result: Destroyed by D-53 Grenadier with Mini Grenade Launcher Performance ------------- Evolutions (1) 500 Regions Visited (3) 600 Robots Destroyed (36) 180 Value Destroyed (861) 861 Prototype IDs (1) 20 Alien Tech Used (0) 0 Bonus (41) 41 TOTAL SCORE: 2202 Bonus ------- High Alert Combat Kills 41 Cogmind --------- Core Integrity 0/400 Matter 433/450 Energy 56/100 System Corruption 0% Temperature Cool (2) Movement Walking (120) Location -9/Mines Parts ------- > --- POWER (1) -------- (None) > --- PROPULSION (4) --- Improved Aluminum Leg > --- UTILITY (2) ------ Small Storage Unit Compact Matter Pod > --- WEAPON (2) ------- Small Laser Light Assault Rifle > --- INVENTORY (8) ---- Light Ion Engine Aluminum Leg Heat Sink Improved Heat Sink Compact Matter Pod (150) Small Laser Peak State ------------ > --- POWER ------------ Ion Engine > --- PROPULSION ------- Aluminum Leg Improved Aluminum Leg Improved Aluminum Leg Improved Aluminum Leg > --- UTILITY ---------- Small Storage Unit Experimental Sensor Array > --- WEAPON ----------- EM Pulse Gun Beam Rifle > --- INVENTORY -------- Light Ion Engine Aluminum Leg Heat Sink Improved Heat Sink Small Laser Small Laser Light Assault Rifle [Rating: 21] Favorites ----------- Power Ion Engine Engine Ion Engine Propulsion Improved Aluminum Leg Leg Improved Aluminum Leg Wheel Wheel Utility Small Storage Unit Device Heat Sink Storage Small Storage Unit Weapon Beam Rifle Energy Gun Beam Rifle Ballistic Gun Light Assault Rifle Launcher Rocket Launcher Build | -11 -10 -9 -9 ------- Run | Yrd Mat Mat Min Slots Evolved 2 | . . 2 . Power . | . . . . Propulsion 2 | . . 2 . Utility . | . . . . Weapon . | . . . . Parts Attached 24 | 6 4 9 5 Power 2 | 1 1 . . Engine 2 | 1 1 . . Core . | . . . . Reactor . | . . . . Propulsion 9 | 2 2 5 . Treads . | . . . . Leg 7 | . 2 5 . Wheel 2 | 2 . . . Hover . | . . . . Flight . | . . . . Utility 6 | 1 1 2 2 Device 4 | . 1 2 1 Storage 2 | 1 . . 1 Processor . | . . . . Hackware . | . . . . Protection . | . . . . Artifact . | . . . . Weapon 7 | 2 . 2 3 Energy Gun 4 | 1 . 1 2 Energy Cannon . | . . . . Ballistic Gun 2 | 1 . . 1 Ballistic Cannon . | . . . . Launcher 1 | . . 1 . Special Weapon . | . . . . Impact Weapon . | . . . . Slashing Weapon . | . . . . Piercing Weapon . | . . . . Special Melee Weapon . | . . . . Unidentified Prototypes 1 | . . . 1 Parts Lost 9 | . . 2 7 Power 1 | . . . 1 Propulsion 4 | . . 1 3 Utility 1 | . . 1 . Weapon 3 | . . . 3 Highest Loss Streak 6 | . . 1 6 To Critical Strikes . | . . . . Average Slot Usage (%) 96 | . 93 99 94 Engine 11 | . 13 11 10 Leg 34 | . 3 43 43 Wheel 5 | . 24 . . Device 8 | . 8 11 1 Storage 12 | . 14 11 16 Energy Gun 14 | . 14 11 21 Ballistic Gun 5 | . 14 4 . Launcher 3 | . . 6 . Peak Build Rating 21 | 6 9 16 21 Average Rating 12 | 3 6 14 14 On Entrance 7 | . 6 9 16 Naked Turns . | . . . . Heaviest Build 19 | 10 13 19 16 Greatest Support 52 | 26 26 52 49 Greatest Overweight (x) 3 | 3 . . . Average Overweight (x) . | . . . . Largest Inventory Capacity 8 | 8 8 8 8 Average Capacity 7 | 7 8 8 8 Most Carried 8 | 8 8 8 8 Average Carried 7 | 4 6 7 7 Final Capacity 8 | 8 8 8 8 Final Carried 7 | 6 7 7 6 Class Distribution -------------------- 93% | Mutant 6% | Scavenger-Mutant Dominant Class ---------------- Mutant | -10/Materials Mutant | -9/Materials Mutant | -9/Mines Resources | -11 -10 -9 -9 ----------- Run | Yrd Mat Mat Min Matter Collected 789 | 260 32 310 187 Remotely . | . . . . Salvage Created 943 | . 87 797 59 Parts 64 | . 5 49 10 Haulers Intercepted 1 | . . 1 . Recyclers Shooed . | . . . . Parts Field Recycled . | . . . . Retrieved Matter . | . . . . Parts Self-Destructed . | . . . . Prevented . | . . . . Kills | -11 -10 -9 -9 ------- Run | Yrd Mat Mat Min Combat Hostiles Destroyed 25 | . 1 21 3 Guns 11 | . 1 7 3 AOE 14 | . . 14 . Classes Destroyed 10 | . 2 8 . Worker 1 | . . 1 . Builder 2 | . . 2 . Tunneler 3 | . . 2 1 Hauler 1 | . . 1 . Recycler 1 | . . 1 . Watcher 3 | . 2 1 . Swarmer 7 | . . 4 3 Grunt 12 | . 1 11 . Duelist 1 | . . 1 . Sentry 5 | . . 5 . Best Kill Streak 16 | . 2 12 16 Combat Bots Only 11 | . 1 8 11 Max Kills in Single Turn 2 | . 1 2 2 Gunslinging 1 | . . . 1 Exploded 2 | . . 2 . Melee . | . . . . Uniques/NPCs Destroyed . | . . . . Combat | -11 -10 -9 -9 -------- Run | Yrd Mat Mat Min Hostile Shots Fired 105 | . 6 73 26 Missed 27 | . 1 20 6 Damage Taken 1504 | . 94 794 616 Core 467 | . 60 147 260 Absorbed by Shields . | . . . . Core Remaining (%) 88 | 100 76 . . Volleys Fired 82 | . 13 61 8 Largest 2 | . 2 2 2 Hottest 96 | . 60 76 96 Shots Fired 126 | . 25 86 15 Gun 102 | . 25 63 14 Cannon . | . . . . Launcher 24 | . . 23 1 Special . | . . . . Kinetic 40 | . 13 25 2 Thermal 57 | . 12 38 7 Explosive 24 | . . 23 1 Electromagnetic 5 | . . . 5 Robot Hit Streak 11 | . 4 11 3 Robot Miss Streak 9 | . 4 9 3 Penetration Max . | . . . . Secondary Targets 1 | . . . 1 Max Gunslinging Chain 1 | . . . 1 Shots Hit Robots 72 | . 11 53 8 Core Hits 60 | . 6 48 6 Critical Kills . | . . . . Critical Parts Destroyed . | . . . . Critical Strikes 2 | . . 2 . Burn 2 | . . 2 . Melee Attacks . | . . . . Impact . | . . . . Slashing . | . . . . Piercing . | . . . . Sneak Attacks . | . . . . Combat Hostiles . | . . . . Follow-up Attacks . | . . . . Damage Inflicted 2205 | . 102 1966 137 Guns 733 | . 102 513 118 Cannons . | . . . . Explosions 1472 | . . 1453 19 Melee . | . . . . Ramming . | . . . . Kinetic 197 | . 28 157 12 Thermal 500 | . 74 356 70 Explosive 1472 | . . 1453 19 Electromagnetic 36 | . . . 36 Impact . | . . . . Slashing . | . . . . Piercing . | . . . . Highest Corruption . | . . . . Average Corruption . | . . . . Corruption Purged . | . . . . Corruption Blocked . | . . . . Overload Shots . | . . . . Overflow Damage 12 | . . 12 . Projectiles . | . . . . Explosions 12 | . . 12 . Melee . | . . . . Knockbacks . | . . . . Impact . | . . . . Kinetic . | . . . . Secondary . | . . . . Self-Inflicted Damage 56 | . . 29 27 Shots 2 | . . 1 1 Rammed . | . . . . Targets Rammed . | . . . . Kicked . | . . . . Crushed . | . . . . Highest Temperature 108 | . 64 48 108 Average Temperature 31 | . 45 15 42 Received Heat Transfer 279 | . 30 249 . Siege Activations . | . . . . Robots Corrupted . | . . . . Combat Hostiles . | . . . . Parts Fried . | . . . . Impact Corruptions . | . . . . Robots Melted . | . . . . Combat Hostiles . | . . . . Parts Melted 2 | . . 1 1 Heat Transferred 1386 | . 175 1038 173 Parts Sabotaged . | . . . . Parts Stolen . | . . . . Parts Stripped . | . . . . Power Chain Reactions . | . . . . Alert | -11 -10 -9 -9 ------- Run | Yrd Mat Mat Min Peak Influence 580 | . 49 580 298 Initial 226 | . . 20 226 Average 189 | . 30 226 293 Maximum Alert Level 2 | . . 2 1 Low Security (%) 46 | 100 100 41 . Level 1 49 | . . 51 100 Level 2 3 | . . 6 . Level 3 . | . . . . Level 4 . | . . . . Level 5 . | . . . . High Security . | . . . . Max Security . | . . . . Squads Dispatched . | . . . . Investigation . | . . . . Extermination . | . . . . Reinforcement . | . . . . Assault . | . . . . Garrison . | . . . . Intercept . | . . . . Searches Triggered . | . . . . Construction Impeded . | . . . . Haulers Reinforced . | . . . . Active Scanning Responses . | . . . . Cargo Convoy Interrupts . | . . . . Stealth | -11 -10 -9 -9 --------- Run | Yrd Mat Mat Min Distress Signals 2 | . . 2 . Communications Jammed . | . . . . Distress Signals . | . . . . Times Spotted 35 | . 5 24 6 Peak Tracking Total 8 | . 2 8 3 Tactical Retreats . | . . . . Traps | -11 -10 -9 -9 ------- Run | Yrd Mat Mat Min Traps Triggered 1 | . 1 . . Indirectly . | . . . . Trap Hack Attempts . | . . . . Triggered . | . . . . Disarmed 2 | . 2 . . Reprogrammed . | . . . . Reused . | . . . . Traps Extracted . | . . . . Installed . | . . . . Triggered . | . . . . Machines | -11 -10 -9 -9 ---------- Run | Yrd Mat Mat Min Machines Disabled 2 | . . 2 . Max in Single Turn 1 | . . 1 . Machines Repaired . | . . . . Machines Dismantled . | . . . . Machines Sabotaged . | . . . . Overloaded Fab Kills . | . . . . Hacking | -11 -10 -9 -9 --------- Run | Yrd Mat Mat Min Machines Accessed 4 | . 2 2 . Terminals 4 | . 2 2 . Fabricators . | . . . . Repair Stations . | . . . . Recycling Units . | . . . . Scanalyzers . | . . . . Garrison Access . | . . . . Total Hacks 8 | . 6 2 . Successful 4 | . 2 2 . Failed 4 | . 4 . . Catastrophic 1 | . 1 . . Database Lockouts . | . . . . Manual . | . . . . Terminals 8 | . 6 2 . Fabricators . | . . . . Repair Stations . | . . . . Recycling Units . | . . . . Scanalyzers . | . . . . Garrison Access . | . . . . Terminal Hacks 4 | . 2 2 . Alert Level 1 | . . 1 . Locate Traps 1 | . 1 . . Disarm Traps 1 | . 1 . . Hauler Manifests 1 | . . 1 . Fabricator Hacks . | . . . . Repair Station Hacks . | . . . . Recycling Unit Hacks . | . . . . Scanalyzer . | . . . . Garrison Access Hacks . | . . . . Unauthorized Hacks . | . . . . Terminals . | . . . . Fabricators . | . . . . Repair Stations . | . . . . Recycling Units . | . . . . Scanalyzers . | . . . . Garrison Access . | . . . . Data Cores Recovered . | . . . . Used . | . . . . Hacking Detections 3 | . 2 1 . Full Trace Events . | . . . . Feedback Events . | . . . . Feedback Blocked . | . . . . Robot Schematics Acquired . | . . . . Robots Built . | . . . . Authchips . | . . . . Time . | . . . . Total Robot Build Rating . | . . . . Part Schematics Acquired . | . . . . Parts Built . | . . . . Authchips . | . . . . Time . | . . . . Total Part Build Rating . | . . . . Parts Repaired . | . . . . Time . | . . . . Parts Recycled . | . . . . Recycled Matter . | . . . . Retrieved Matter . | . . . . Retrieved Components . | . . . . Parts Scanalyzed . | . . . . Part Schematics Acquired . | . . . . Parts Damaged . | . . . . Bothacking | -11 -10 -9 -9 ------------ Run | Yrd Mat Mat Min Used RIF Installer . | . . . . Robots Hacked . | . . . . Non-combat . | . . . . Combat . | . . . . Robot Hacks Applied . | . . . . Relay Couplers Released . | . . . . Fabnet Peak Effective % . | . . . . Robots Rewired . | . . . . Allies Hacked . | . . . . Hacks Repelled . | . . . . Allies | -11 -10 -9 -9 -------- Run | Yrd Mat Mat Min Total Allies . | . . . . Largest Group . | . . . . Highest-Rated Group . | . . . . Highest-Rated Ally . | . . . . Total Orders . | . . . . Ally Attacks . | . . . . Total Damage . | . . . . Kills . | . . . . Allies Corrupted . | . . . . Allies Melted . | . . . . Intel | -11 -10 -9 -9 ------- Run | Yrd Mat Mat Min Robot Analysis Total . | . . . . Derelict Logs Recovered . | . . . . Drone Launches . | . . . . Drone Recoveries . | . . . . Exploration | -11 -10 -9 -9 ------------- Run | Yrd Mat Mat Min Turns Passed 1148 | 61 241 564 282 Spaces Moved 731 | 46 189 307 189 Core 27 | 27 . . . Treads . | . . . . Legs 519 | . 23 307 189 Wheels 185 | 19 166 . . Hover . | . . . . Flight . | . . . . Fastest Speed 50 | 50 90 120 120 Average Speed 111 | 93 93 120 120 Slowest Speed 200 | 200 120 120 120 Overloaded Moves . | . . . . Propulsion Burnouts . | . . . . Robots Hopped . | . . . . Cave-ins Triggered . | . . . . Exploration Rate (%) 27 | 4 39 38 29 Regions Visited 3 Branch Regions 1 Pre-discovered Areas . | . . . . Known Exits Taken . | . . . . Unknown Exits Taken 3 | 1 1 1 . Scrap Searched . | . . . . Spaces Dug 4 | . . 4 . Terrain Destroyed 149 | . . 141 8 Melee . | . . . . Projectile . | . . . . AOE 149 | . . 141 8 Terrain Rammed . | . . . . Walls Destroyed . | . . . . Machines Disabled . | . . . . Actions | -11 -10 -9 -9 --------- Run | Yrd Mat Mat Min Total 948 | 63 234 420 231 Wait 76 | . 15 36 25 Move 728 | 45 188 306 189 Hop . | . . . . Pick Up 30 | 12 8 7 3 Fast Attach . | . . . . Attach 20 | 6 4 6 4 Detach . | . . . . Swap 4 | . . 3 1 Drop 8 | . 6 1 1 Fire 82 | . 13 61 8 Melee . | . . . . Ram . | . . . . Kick . | . . . . Crush . | . . . . Escape Stasis . | . . . . Rewire . | . . . . Trap . | . . . . Miscellaneous . | . . . . Route ------- -11/Scrapyard -10/Materials (discovered 2 exits: *Mat x2) -9/Materials -9/Mines History --------- Turn | Location | Event 11 | -11/Scrapyard | Discovered new exit (range 15) 62 | -11/Scrapyard | Entered Materials 116 | -10/Materials | Discovered new exit (range 15) 295 | -10/Materials | Discovered new exit (range 5) 303 | -10/Materials | Entered another Materials area 303 | -9/Materials | Evolved 2 slots: Propulsion x2 325 | -9/Materials | Build established: Mutant 844 | -9/Materials | Discovered new exit (range 15) 867 | -9/Materials | Entered Mines 900 | -9/Mines | Destroyed 11 combat bots 908 | -9/Mines | Found a damaged Exp. Sensor Array with a note attached 910 | -9/Mines | Found Prototype Device 911 | -9/Mines | Identified Exp. Sensor Array 920 | -9/Mines | Assembled infested the area 1139 | -9/Mines | Core integrity fell below 50% 1148 | -9/Mines | Core integrity fell below 20% 1149 | -9/Mines | Destroyed by D-53 Grenadier with Mini Grenade Launcher Last Messages --------------- start expanding in this direction." Extracted 36 matter. Acquired Com. Matter Pod. Extracted 46 matter. Acquired Com. Matter Pod. Extracted 46 matter. K-01 Serf collects debris. Ion Engine destroyed. T-07 Excavator destroyed. Beam Rifle destroyed. Imp. Aluminum Leg destroyed. EM Pulse Gun destroyed. U-05 Engineer lays Concrete. The unstable cave ceiling collapses. U-05 Engineer lays Concrete. Aluminum Leg destroyed. U-05 Engineer builds a Wall. D-53 Grenadier destroyed. Imp. Aluminum Leg destroyed. U-05 Engineer lays Concrete. Map ----- +----------------------------------------------------+ | | | | | | | | | | | | | | | | | | | ??????????????????????????????????????????????? | | ??????????????????????????????????????????????? | | ??????????????????????????????????????????????? | | ??????????####????????????????????????????????? | | ?????????## ##???????????????????????????????? | | ???????### #########???????????????????????? | | ??????## ! ##??????????????????????? | | ?????## #######; ####???????????????????? | | ##???# ##???## ##??????????????????? | | ##??# ##????# ##?????????????????? | | #### ##?????## # #?????????????????? | | ####??????# #?????????????????? | | ### #?????????## ##????????????????? | | ##?# #??????????# d ##???####;#??????? | | ##??# #??s ### #; % %%%%%%?????? | | ##???# #???"" % %u% %% ?????? | | ?????# #???"" ### @ % #??????????? | | ?????# #??????????## ## <##??????????? | | ?????# #???????????## #??##???????????? | | ?????# #????????????## ##???????????????? | | ?????# #?????????????## # # ???????????????? | | ?????# #??????????????##### ??????????????? | | ?????# #???????????????????##ur ?????????????? | | ?????# #?????????????????????# ????????????? | | ????## #?????????????????????? ???????????? | | ???## ##??????????????????????r ??????????? | | ???# ##????????????????????? ?????????? | | ??## #?????????????????????? ?????????? | | ??# #??????????????????????? ???????????? | | ??# ##????????????????????????????????????? | | ??# ####?????????????????????????????????????? | | ### ##????????????????????????????????????????? | | #?????????????????????????????????????????? | | #####?????????????????????????????????????????? | | ??????????????????????????????????????????????? | | ??????????????????????????????????????????????? | | ??????????????????????????????????????????????? | | ??????????????????????????????????????????????? | | ??????????????????????????????????????????????? | | ??????????????????????????????????????????????? | | ??????????????????????????????????????????????? | +----------------------------------------------------+ Best States ------------- Heat Dissipation 50 Energy Generation 10 Energy Capacity 250 Matter Stores 450 Matter Capacity 450 Sight Range 16 Terrain Scan Density 10 Evasion (%) 55 Item Schematics ----------------- None Robot Schematics ------------------ None Fabricated ------------ Nothing Alien Tech Used ----------------- None Achievements -------------- None Challenges ------------ None Game ------ Seed OmegaFissionExtrapolator Manual? 0 Play Time 00:16:32 Cumulative 17.0 hours Start 2024.11.17 @ 20:57:36 End 2024.11.17 @ 21:15:02 Sessions 1 Manual Loads 0 Difficulty Rogue Special Mode None Game No. 30 Rogue 30 Adventurer 0 Explorer 0 Win Type - Total 0 Types 0/0/0/0/0/0/0/0/0 Lore% 12 Gallery% 22 Achievement% 18 Wizard Run 0 Options --------- Layout 1 ASCII 0 Keyboard 0 Movement Mouse Keybinds 0 Fullscreen 1 Font 24/Smallcaps Map View 50x35 Zoom Use 0% Tactical HUD 0 Map Filters NONE Filters NONE Steam 1 RUN: 6dd54b70-a5f8-40c6-8b11-f82742518e5c